[Event "Titled Tuesday Blitz May 10 Early 2022"]
[White "Derraugh, Geordie"]
[Black "Needleman, Alejandro"]
[WhiteFideId "2603950"]
[BlackFideId "100730"]
[WhiteElo "2116"]
[BlackElo "2352"]
[Result "1-0"]
[Round "09"]
[TimeControl "180+1"]
[Date "2022.05.11"]
[WhiteClock "0:00:54"]
[BlackClock "0:01:26"]

1. e4 {[%clk 0:03:00]}  c5 {[%clk 0:02:59]} 2. c3 {[%clk 0:03:00]}  e6 {[%clk 0:03:00]} 3. d4 {[%clk 0:02:59]}  d5 {[%clk 0:03:00]} 4. exd5 {[%clk 0:02:59]}  exd5 {[%clk 0:03:01]} 5. Nf3 {[%clk 0:02:59]}  Nc6 {[%clk 0:03:01]} 6. Bb5 {[%clk 0:02:59]}  Bd6 {[%clk 0:03:00]} 7. dxc5 {[%clk 0:02:57]}  Bxc5 {[%clk 0:03:01]} 8. O-O {[%clk 0:02:58]}  Nf6 {[%clk 0:03:01]} 9. Bg5 {[%clk 0:02:55]}  Be6 {[%clk 0:02:56]} 10. Qa4 {[%clk 0:02:50]}  O-O {[%clk 0:02:49]} 11. Bxc6 {[%clk 0:02:47]}  bxc6 {[%clk 0:02:50]} 12. Qxc6 {[%clk 0:02:47]}  Rc8 {[%clk 0:02:47]} 13. Qa4 {[%clk 0:02:47]}  h6 {[%clk 0:02:47]} 14. Bh4 {[%clk 0:02:42]}  g5 {[%clk 0:02:47]} 15. Bg3 {[%clk 0:02:22]}  Ne4 {[%clk 0:02:47]} 16. Nbd2 {[%clk 0:02:19]}  Nxg3 {[%clk 0:02:47]} 17. hxg3 {[%clk 0:02:19]}  Bf5 {[%clk 0:02:38]} 18. Nd4 {[%clk 0:02:17]}  Be4 {[%clk 0:02:36]} 19. Nxe4 {[%clk 0:02:14]}  dxe4 {[%clk 0:02:36]} 20. Nf5 {[%clk 0:02:12]}  Qf6 {[%clk 0:02:28]} 21. Qxe4 {[%clk 0:02:10]}  Rfe8 {[%clk 0:02:27]} 22. Qg4 {[%clk 0:02:05]}  Rcd8 {[%clk 0:02:21]} 23. Rad1 {[%clk 0:02:04]}  Rxd1 {[%clk 0:02:20]} 24. Rxd1 {[%clk 0:02:04]}  Kh7 {[%clk 0:02:16]} 25. b4 {[%clk 0:01:52]}  Bb6 {[%clk 0:02:15]} 26. Rd6 {[%clk 0:01:50]}  Re6 {[%clk 0:02:09]} 27. Rxe6 {[%clk 0:01:44]}  Qxe6 {[%clk 0:01:59]} 28. Ne3 {[%clk 0:01:11]}  Bxe3 {[%clk 0:01:57]} 29. Qxe6 {[%clk 0:01:11]}  Bxf2+ {[%clk 0:01:44]} 30. Kxf2 {[%clk 0:01:12]}  fxe6 {[%clk 0:01:44]} 31. Kf3 {[%clk 0:00:56]}  Kg6 {[%clk 0:01:45]} 32. Ke4 {[%clk 0:00:57]}  Kf6 {[%clk 0:01:45]} 33. c4 {[%clk 0:00:57]}  h5 {[%clk 0:01:32]} 34. c5 {[%clk 0:00:56]}  Ke7 {[%clk 0:01:32]} 35. Ke5 {[%clk 0:00:56]}  Kd7 {[%clk 0:01:26]} 36. b5 {[%clk 0:00:54]} 1-0


[Site "https://www.chess.com"]

[Event "Titled Tuesday Blitz May 10 Early 2022"]
[White "Devaev, Alexander"]
[Black "Martin, Lewis"]
[WhiteFideId "4169395"]
[BlackFideId "410551"]
[WhiteElo "2185"]
[BlackElo "2145"]
[Result "1-0"]
[Round "09"]
[TimeControl "180+1"]
[Date "2022.05.11"]
[WhiteClock "0:00:07"]
[BlackClock "0:00:02"]

1. d4 {[%clk 0:03:00]}  d5 {[%clk 0:02:59]} 2. c4 {[%clk 0:03:00]}  e6 {[%clk 0:02:58]} 3. Nc3 {[%clk 0:03:00]}  Nf6 {[%clk 0:02:58]} 4. cxd5 {[%clk 0:03:01]}  exd5 {[%clk 0:02:58]} 5. Bg5 {[%clk 0:03:02]}  Be7 {[%clk 0:02:57]} 6. Bxf6 {[%clk 0:03:01]}  Bxf6 {[%clk 0:02:56]} 7. e3 {[%clk 0:03:02]}  c6 {[%clk 0:02:54]} 8. Bd3 {[%clk 0:03:02]}  O-O {[%clk 0:02:53]} 9. Nf3 {[%clk 0:03:03]}  Nd7 {[%clk 0:02:51]} 10. Qc2 {[%clk 0:03:04]}  h6 {[%clk 0:02:48]} 11. h3 {[%clk 0:03:04]}  b5 {[%clk 0:02:46]} 12. O-O {[%clk 0:03:04]}  Re8 {[%clk 0:02:42]} 13. Ne2 {[%clk 0:03:05]}  Qb6 {[%clk 0:02:36]} 14. Rac1 {[%clk 0:03:05]}  Bb7 {[%clk 0:02:36]} 15. Nf4 {[%clk 0:02:52]}  Rac8 {[%clk 0:02:30]} 16. Bf5 {[%clk 0:02:51]}  Re7 {[%clk 0:02:27]} 17. Nd3 {[%clk 0:02:50]}  Rc7 {[%clk 0:02:23]} 18. Bxd7 {[%clk 0:02:45]}  Rexd7 {[%clk 0:02:22]} 19. Nfe5 {[%clk 0:02:33]}  Re7 {[%clk 0:02:20]} 20. Ng4 {[%clk 0:02:33]}  Re6 {[%clk 0:02:16]} 21. Nxf6+ {[%clk 0:02:31]}  Rxf6 {[%clk 0:02:16]} 22. Nb4 {[%clk 0:02:10]}  Rd7 {[%clk 0:02:09]} 23. Nd3 {[%clk 0:02:07]}  Re7 {[%clk 0:02:02]} 24. Qc5 {[%clk 0:02:02]}  Qxc5 {[%clk 0:02:01]} 25. Rxc5 {[%clk 0:02:01]}  Rfe6 {[%clk 0:01:50]} 26. Rfc1 {[%clk 0:02:01]}  g5 {[%clk 0:01:47]} 27. Nb4 {[%clk 0:01:53]}  Rd7 {[%clk 0:00:57]} 28. Nxc6 {[%clk 0:01:47]}  Bxc6 {[%clk 0:00:45]} 29. Rxc6 {[%clk 0:01:48]}  Kf8 {[%clk 0:00:43]} 30. R1c5 {[%clk 0:01:31]}  Rb7 {[%clk 0:00:31]} 31. Rc8+ {[%clk 0:01:25]}  Ke7 {[%clk 0:00:30]} 32. Rxd5 {[%clk 0:01:26]}  b4 {[%clk 0:00:27]} 33. Rdc5 {[%clk 0:01:25]}  Ra6 {[%clk 0:00:26]} 34. R8c7+ {[%clk 0:01:19]}  Rxc7 {[%clk 0:00:25]} 35. Rxc7+ {[%clk 0:01:20]}  Ke6 {[%clk 0:00:25]} 36. Rb7 {[%clk 0:01:21]}  Rxa2 {[%clk 0:00:24]} 37. Rxb4 {[%clk 0:01:21]}  Kd5 {[%clk 0:00:23]} 38. g4 {[%clk 0:01:13]}  Ke4 {[%clk 0:00:22]} 39. Kg2 {[%clk 0:01:13]}  Kd3 {[%clk 0:00:21]} 40. Rb7 {[%clk 0:01:13]}  a5 {[%clk 0:00:17]} 41. b4 {[%clk 0:01:02]}  Rb2 {[%clk 0:00:14]} 42. d5 {[%clk 0:00:50]}  axb4 {[%clk 0:00:13]} 43. d6 {[%clk 0:00:49]}  Kc3 {[%clk 0:00:13]} 44. Rc7+ {[%clk 0:00:48]}  Kb3 {[%clk 0:00:13]} 45. Rxf7 {[%clk 0:00:49]}  Rd2 {[%clk 0:00:13]} 46. d7 {[%clk 0:00:29]}  Kc2 {[%clk 0:00:12]} 47. e4 {[%clk 0:00:29]}  b3 {[%clk 0:00:12]} 48. e5 {[%clk 0:00:13]}  b2 {[%clk 0:00:12]} 49. d8=Q {[%clk 0:00:13]}  Rxd8 {[%clk 0:00:10]} 50. Rc7+ {[%clk 0:00:13]}  Kd1 {[%clk 0:00:09]} 51. Rb7 {[%clk 0:00:12]}  Kc1 {[%clk 0:00:09]} 52. Rc7+ {[%clk 0:00:13]}  Kd1 {[%clk 0:00:09]} 53. Rb7 {[%clk 0:00:11]}  Kc1 {[%clk 0:00:09]} 54. f4 {[%clk 0:00:10]}  gxf4 {[%clk 0:00:03]} 55. Rc7+ {[%clk 0:00:10]}  Kd1 {[%clk 0:00:03]} 56. Rb7 {[%clk 0:00:11]}  Kc1 {[%clk 0:00:04]} 57. Kf3 {[%clk 0:00:10]}  b1=Q {[%clk 0:00:04]} 58. Rxb1+ {[%clk 0:00:10]}  Kxb1 {[%clk 0:00:04]} 59. Kxf4 {[%clk 0:00:11]}  Kc2 {[%clk 0:00:05]} 60. Kf5 {[%clk 0:00:11]}  Kd3 {[%clk 0:00:06]} 61. e6 {[%clk 0:00:12]}  Ke3 {[%clk 0:00:06]} 62. h4 {[%clk 0:00:12]}  Rf8+ {[%clk 0:00:04]} 63. Kg6 {[%clk 0:00:12]}  Ke4 {[%clk 0:00:04]} 64. Kxh6 {[%clk 0:00:11]}  Ke5 {[%clk 0:00:04]} 65. g5 {[%clk 0:00:06]}  Kxe6 {[%clk 0:00:04]} 66. Kg7 {[%clk 0:00:07]}  Rf7+ {[%clk 0:00:04]} 67. Kg6 {[%clk 0:00:07]}  Ke7 {[%clk 0:00:03]} 68. h5 {[%clk 0:00:08]}  Rf1 {[%clk 0:00:03]} 69. h6 {[%clk 0:00:09]}  Rh1 {[%clk 0:00:03]} 70. Kg7 {[%clk 0:00:08]}  Rh5 {[%clk 0:00:02]} 71. g6 {[%clk 0:00:08]}  Ke6 {[%clk 0:00:01]} 72. h7 {[%clk 0:00:07]}  Kf5 {[%clk 0:00:02]} 73. Kf7 {[%clk 0:00:07]} 1-0


[Site "https://www.chess.com"]

[Event "Titled Tuesday Blitz May 10 Early 2022"]
[White "Fedoseev, Vladimir"]
[Black "Jobava, Baadur"]
[WhiteFideId "24130737"]
[BlackFideId "13601520"]
[WhiteElo "2726"]
[BlackElo "2617"]
[Result "1-0"]
[Round "09"]
[TimeControl "180+1"]
[Date "2022.05.10"]
[WhiteClock "0:00:14"]
[BlackClock "0:00:03"]

1. e4 {[%clk 0:02:59]}  c6 {[%clk 0:02:54]} 2. c3 {[%clk 0:02:59]}  d5 {[%clk 0:02:55]} 3. exd5 {[%clk 0:02:59]}  cxd5 {[%clk 0:02:55]} 4. d4 {[%clk 0:03:00]}  Nc6 {[%clk 0:02:53]} 5. Bf4 {[%clk 0:02:55]}  Bf5 {[%clk 0:02:53]} 6. Nd2 {[%clk 0:02:43]}  e6 {[%clk 0:02:52]} 7. Ngf3 {[%clk 0:02:42]}  Bd6 {[%clk 0:02:52]} 8. Bxd6 {[%clk 0:02:37]}  Qxd6 {[%clk 0:02:53]} 9. Nh4 {[%clk 0:02:33]}  Bg6 {[%clk 0:02:47]} 10. g3 {[%clk 0:02:30]}  Nf6 {[%clk 0:02:46]} 11. Nxg6 {[%clk 0:02:27]}  hxg6 {[%clk 0:02:47]} 12. Bd3 {[%clk 0:02:19]}  O-O-O {[%clk 0:02:47]} 13. f4 {[%clk 0:02:03]}  Kb8 {[%clk 0:02:47]} 14. Qe2 {[%clk 0:02:02]}  Ne7 {[%clk 0:02:30]} 15. Nf3 {[%clk 0:01:59]}  Nf5 {[%clk 0:02:30]} 16. O-O-O {[%clk 0:01:57]}  Qc7 {[%clk 0:02:29]} 17. Kb1 {[%clk 0:01:55]}  Nd6 {[%clk 0:02:29]} 18. Ng5 {[%clk 0:01:51]}  Nh7 {[%clk 0:02:28]} 19. Nf3 {[%clk 0:01:45]}  Nf6 {[%clk 0:02:28]} 20. Rc1 {[%clk 0:01:46]}  Rc8 {[%clk 0:02:21]} 21. Rhe1 {[%clk 0:01:41]}  Ka8 {[%clk 0:02:14]} 22. Rc2 {[%clk 0:01:34]}  Qb6 {[%clk 0:02:11]} 23. Ng5 {[%clk 0:01:31]}  Rc7 {[%clk 0:02:11]} 24. Ka1 {[%clk 0:01:17]}  Rhc8 {[%clk 0:02:11]} 25. Rec1 {[%clk 0:01:17]}  a6 {[%clk 0:02:11]} 26. b3 {[%clk 0:01:05]}  Ka7 {[%clk 0:02:09]} 27. Qe5 {[%clk 0:01:00]}  Nf5 {[%clk 0:01:59]} 28. Kb2 {[%clk 0:00:55]}  Ng4 {[%clk 0:01:55]} 29. Qe1 {[%clk 0:00:51]}  Nxd4 {[%clk 0:01:37]} 30. cxd4 {[%clk 0:00:44]}  Qxd4+ {[%clk 0:01:38]} 31. Rc3 {[%clk 0:00:45]}  Nf2 {[%clk 0:01:35]} 32. Be2 {[%clk 0:00:42]}  Ne4 {[%clk 0:01:03]} 33. Nxe4 {[%clk 0:00:41]}  dxe4 {[%clk 0:01:04]} 34. Qd1 {[%clk 0:00:41]}  Qf6 {[%clk 0:00:34]} 35. Qg1+ {[%clk 0:00:40]}  Kb8 {[%clk 0:00:34]} 36. Qe3 {[%clk 0:00:40]}  Rc6 {[%clk 0:00:23]} 37. b4 {[%clk 0:00:37]}  g5 {[%clk 0:00:13]} 38. fxg5 {[%clk 0:00:32]}  Rxc3 {[%clk 0:00:12]} 39. gxf6 {[%clk 0:00:25]}  Rxe3 {[%clk 0:00:11]} 40. Rxc8+ {[%clk 0:00:25]}  Kxc8 {[%clk 0:00:12]} 41. fxg7 {[%clk 0:00:25]}  Rxe2+ {[%clk 0:00:13]} 42. Kc1 {[%clk 0:00:22]}  Kd7 {[%clk 0:00:11]} 43. g8=Q {[%clk 0:00:21]}  f5 {[%clk 0:00:12]} 44. Qg7+ {[%clk 0:00:20]}  Kd6 {[%clk 0:00:11]} 45. Qd4+ {[%clk 0:00:19]}  Ke7 {[%clk 0:00:11]} 46. Qc5+ {[%clk 0:00:18]}  Kf6 {[%clk 0:00:11]} 47. Qc3+ {[%clk 0:00:17]}  Kg6 {[%clk 0:00:10]} 48. Qc4 {[%clk 0:00:17]}  Rxh2 {[%clk 0:00:10]} 49. Qxe6+ {[%clk 0:00:17]}  Kg5 {[%clk 0:00:11]} 50. Qg8+ {[%clk 0:00:17]}  Kf6 {[%clk 0:00:11]} 51. Qd8+ {[%clk 0:00:17]}  Ke5 {[%clk 0:00:09]} 52. Qc7+ {[%clk 0:00:17]}  Kd4 {[%clk 0:00:09]} 53. Qc5+ {[%clk 0:00:16]}  Kd3 {[%clk 0:00:09]} 54. Qxf5 {[%clk 0:00:17]}  Rc2+ {[%clk 0:00:08]} 55. Kb1 {[%clk 0:00:16]}  Rg2 {[%clk 0:00:08]} 56. g4 {[%clk 0:00:15]}  Kd4 {[%clk 0:00:05]} 57. Qf6+ {[%clk 0:00:15]}  Kc4 {[%clk 0:00:03]} 58. Qf1+ {[%clk 0:00:14]} 1-0


[Site "https://www.chess.com"]

[Event "Titled Tuesday Blitz May 10 Early 2022"]
[White "Friedel, Tom"]
[Black "Zherebtsova, Alexandra"]
[WhiteFideId "2002108"]
[BlackFideId "24129518"]
[WhiteElo "2332"]
[BlackElo "2025"]
[Result "0-1"]
[Round "09"]
[TimeControl "180+1"]
[Date "2022.05.11"]
[WhiteClock "0:00:07"]
[BlackClock "0:00:07"]

1. e4 {[%clk 0:03:00]}  e5 {[%clk 0:02:47]} 2. Nf3 {[%clk 0:03:00]}  Nc6 {[%clk 0:02:48]} 3. Bc4 {[%clk 0:03:00]}  Nf6 {[%clk 0:02:47]} 4. d3 {[%clk 0:02:59]}  h6 {[%clk 0:02:45]} 5. O-O {[%clk 0:02:58]}  d6 {[%clk 0:02:44]} 6. a4 {[%clk 0:02:55]}  g6 {[%clk 0:02:43]} 7. Nc3 {[%clk 0:02:54]}  Bg7 {[%clk 0:02:41]} 8. h3 {[%clk 0:02:53]}  O-O {[%clk 0:02:41]} 9. Be3 {[%clk 0:02:50]}  Nh5 {[%clk 0:02:38]} 10. d4 {[%clk 0:02:43]}  Nf4 {[%clk 0:02:04]} 11. dxe5 {[%clk 0:02:41]}  dxe5 {[%clk 0:02:03]} 12. Bc5 {[%clk 0:02:37]}  Re8 {[%clk 0:01:56]} 13. Nd5 {[%clk 0:02:31]}  Nxd5 {[%clk 0:01:46]} 14. Bxd5 {[%clk 0:02:12]}  Bd7 {[%clk 0:01:28]} 15. Qd3 {[%clk 0:02:09]}  Qf6 {[%clk 0:01:21]} 16. Rad1 {[%clk 0:02:05]}  Rad8 {[%clk 0:01:20]} 17. Qb3 {[%clk 0:02:00]}  b6 {[%clk 0:01:11]} 18. Be3 {[%clk 0:01:43]}  Na5 {[%clk 0:01:04]} 19. Qc3 {[%clk 0:01:34]}  c6 {[%clk 0:00:52]} 20. Ba2 {[%clk 0:01:31]}  Bxh3 {[%clk 0:00:46]} 21. b4 {[%clk 0:00:57]}  Nb7 {[%clk 0:00:44]} 22. Bxb6 {[%clk 0:00:43]}  axb6 {[%clk 0:00:39]} 23. gxh3 {[%clk 0:00:42]}  Bf8 {[%clk 0:00:20]} 24. Kg2 {[%clk 0:00:40]}  Rc8 {[%clk 0:00:15]} 25. Bc4 {[%clk 0:00:39]}  Nd6 {[%clk 0:00:15]} 26. Bd3 {[%clk 0:00:35]}  c5 {[%clk 0:00:15]} 27. Ba6 {[%clk 0:00:29]}  Ra8 {[%clk 0:00:11]} 28. Qd3 {[%clk 0:00:23]}  Nxe4 {[%clk 0:00:10]} 29. Qxe4 {[%clk 0:00:21]}  Rxa6 {[%clk 0:00:10]} 30. Ra1 {[%clk 0:00:19]}  cxb4 {[%clk 0:00:10]} 31. Qb7 {[%clk 0:00:18]}  Rea8 {[%clk 0:00:09]} 32. Rfe1 {[%clk 0:00:18]}  Bc5 {[%clk 0:00:08]} 33. Qd5 {[%clk 0:00:16]}  Kg7 {[%clk 0:00:08]} 34. Qxe5 {[%clk 0:00:16]}  Rxa4 {[%clk 0:00:08]} 35. Rxa4 {[%clk 0:00:14]}  Qxe5 {[%clk 0:00:07]} 36. Rxe5 {[%clk 0:00:13]}  Rxa4 {[%clk 0:00:07]} 37. Rd5 {[%clk 0:00:13]}  Ra2 {[%clk 0:00:07]} 38. Rd7 {[%clk 0:00:13]}  Rxc2 {[%clk 0:00:07]} 39. Ne5 {[%clk 0:00:13]}  b3 {[%clk 0:00:08]} 40. Nd3 {[%clk 0:00:08]}  b2 {[%clk 0:00:07]} 41. Nxb2 {[%clk 0:00:05]}  Rxb2 {[%clk 0:00:07]} 42. Kg3 {[%clk 0:00:05]}  Re2 {[%clk 0:00:07]} 43. f4 {[%clk 0:00:04]}  Re6 {[%clk 0:00:07]} 44. f5 {[%clk 0:00:04]}  Rf6 {[%clk 0:00:07]} 45. Kf4 {[%clk 0:00:05]}  Rxf5+ {[%clk 0:00:07]} 46. Ke4 {[%clk 0:00:06]}  Rf6 {[%clk 0:00:08]} 47. Kd5 {[%clk 0:00:06]}  Bf2 {[%clk 0:00:08]} 48. Rb7 {[%clk 0:00:07]}  b5 {[%clk 0:00:08]} 49. Ke4 {[%clk 0:00:06]}  Rb6 {[%clk 0:00:08]} 50. Kd3 {[%clk 0:00:07]}  Rxb7 {[%clk 0:00:07]} 0-1


[Site "https://www.chess.com"]

[Event "Titled Tuesday Blitz May 10 Early 2022"]
[White "Hakobyan, Aram"]
[Black "Oganian, Miran"]
[WhiteFideId "13306677"]
[BlackFideId "4122488"]
[WhiteElo "2557"]
[BlackElo "2357"]
[Result "1/2-1/2"]
[Round "09"]
[TimeControl "180+1"]
[Date "2022.05.10"]
[WhiteClock "0:00:08"]
[BlackClock "0:00:08"]

1. d4 {[%clk 0:03:00]}  d5 {[%clk 0:02:59]} 2. c4 {[%clk 0:03:01]}  e6 {[%clk 0:02:59]} 3. Nc3 {[%clk 0:03:00]}  a6 {[%clk 0:03:00]} 4. cxd5 {[%clk 0:02:55]}  exd5 {[%clk 0:03:01]} 5. Nf3 {[%clk 0:02:56]}  Nf6 {[%clk 0:03:01]} 6. Bg5 {[%clk 0:02:56]}  Be7 {[%clk 0:03:01]} 7. e3 {[%clk 0:02:56]}  c6 {[%clk 0:03:02]} 8. Bd3 {[%clk 0:02:56]}  Nbd7 {[%clk 0:03:03]} 9. O-O {[%clk 0:02:51]}  O-O {[%clk 0:03:03]} 10. Qc2 {[%clk 0:02:52]}  Re8 {[%clk 0:03:03]} 11. h3 {[%clk 0:02:47]}  Nf8 {[%clk 0:03:03]} 12. Bf4 {[%clk 0:02:44]}  Ng6 {[%clk 0:03:00]} 13. Rae1 {[%clk 0:02:38]}  Bd6 {[%clk 0:02:55]} 14. Bg5 {[%clk 0:02:31]}  Bd7 {[%clk 0:02:36]} 15. e4 {[%clk 0:02:28]}  dxe4 {[%clk 0:02:34]} 16. Nxe4 {[%clk 0:02:29]}  Be7 {[%clk 0:02:34]} 17. Nc5 {[%clk 0:02:17]}  b6 {[%clk 0:02:11]} 18. Nxd7 {[%clk 0:02:15]}  Qxd7 {[%clk 0:02:04]} 19. Ne5 {[%clk 0:02:10]}  Qxd4 {[%clk 0:01:51]} 20. Nxc6 {[%clk 0:02:03]}  Qd6 {[%clk 0:01:39]} 21. Rd1 {[%clk 0:01:39]}  Rac8 {[%clk 0:01:13]} 22. Nxe7+ {[%clk 0:01:29]}  Qxe7 {[%clk 0:01:13]} 23. Qa4 {[%clk 0:01:28]}  Ne5 {[%clk 0:00:53]} 24. Bxa6 {[%clk 0:01:18]}  Ra8 {[%clk 0:00:44]} 25. Rfe1 {[%clk 0:00:46]}  Qa7 {[%clk 0:00:37]} 26. Qd4 {[%clk 0:00:38]}  Nc6 {[%clk 0:00:19]} 27. Rxe8+ {[%clk 0:00:37]}  Rxe8 {[%clk 0:00:18]} 28. Qc3 {[%clk 0:00:29]}  Qxa6 {[%clk 0:00:07]} 29. Bxf6 {[%clk 0:00:29]}  gxf6 {[%clk 0:00:06]} 30. Qxc6 {[%clk 0:00:29]}  Re6 {[%clk 0:00:04]} 31. Rd8+ {[%clk 0:00:24]}  Kg7 {[%clk 0:00:04]} 32. Qc3 {[%clk 0:00:25]}  Qa5 {[%clk 0:00:04]} 33. Qxa5 {[%clk 0:00:17]}  bxa5 {[%clk 0:00:04]} 34. Rd2 {[%clk 0:00:17]}  Re1+ {[%clk 0:00:03]} 35. Kh2 {[%clk 0:00:17]}  Rb1 {[%clk 0:00:03]} 36. b3 {[%clk 0:00:17]}  a4 {[%clk 0:00:02]} 37. bxa4 {[%clk 0:00:16]}  Rb4 {[%clk 0:00:03]} 38. a3 {[%clk 0:00:16]}  Rxa4 {[%clk 0:00:03]} 39. Rd3 {[%clk 0:00:17]}  f5 {[%clk 0:00:03]} 40. Kg3 {[%clk 0:00:17]}  Kf6 {[%clk 0:00:04]} 41. Kf3 {[%clk 0:00:17]}  Ke5 {[%clk 0:00:05]} 42. Ke3 {[%clk 0:00:18]}  f4+ {[%clk 0:00:03]} 43. Kd2 {[%clk 0:00:18]}  Ke4 {[%clk 0:00:03]} 44. f3+ {[%clk 0:00:17]}  Kf5 {[%clk 0:00:03]} 45. Kc2 {[%clk 0:00:17]}  Kg5 {[%clk 0:00:03]} 46. Kb3 {[%clk 0:00:17]}  Ra7 {[%clk 0:00:03]} 47. a4 {[%clk 0:00:16]}  Kh4 {[%clk 0:00:03]} 48. Kb4 {[%clk 0:00:16]}  Kg3 {[%clk 0:00:03]} 49. Rd2 {[%clk 0:00:16]}  Rb7+ {[%clk 0:00:04]} 50. Kc5 {[%clk 0:00:16]}  Rc7+ {[%clk 0:00:03]} 51. Kb6 {[%clk 0:00:16]}  Rc1 {[%clk 0:00:03]} 52. a5 {[%clk 0:00:17]}  Rb1+ {[%clk 0:00:04]} 53. Ka7 {[%clk 0:00:14]}  h5 {[%clk 0:00:04]} 54. a6 {[%clk 0:00:14]}  h4 {[%clk 0:00:04]} 55. Ka8 {[%clk 0:00:14]}  f5 {[%clk 0:00:05]} 56. a7 {[%clk 0:00:12]}  Rb3 {[%clk 0:00:05]} 57. Rd7 {[%clk 0:00:09]}  Kxg2 {[%clk 0:00:05]} 58. Rb7 {[%clk 0:00:09]}  Ra3 {[%clk 0:00:05]} 59. Kb8 {[%clk 0:00:10]}  Kxf3 {[%clk 0:00:05]} 60. a8=Q {[%clk 0:00:08]}  Rxa8+ {[%clk 0:00:05]} 61. Kxa8 {[%clk 0:00:09]}  Kg3 {[%clk 0:00:06]} 62. Rf7 {[%clk 0:00:05]}  Kxh3 {[%clk 0:00:06]} 63. Rxf5 {[%clk 0:00:06]}  Kg4 {[%clk 0:00:06]} 64. Rf8 {[%clk 0:00:06]}  h3 {[%clk 0:00:07]} 65. Rg8+ {[%clk 0:00:06]}  Kf3 {[%clk 0:00:07]} 66. Rh8 {[%clk 0:00:06]}  Kg3 {[%clk 0:00:07]} 67. Rg8+ {[%clk 0:00:07]}  Kf2 {[%clk 0:00:08]} 68. Rh8 {[%clk 0:00:06]}  Kg2 {[%clk 0:00:08]} 69. Rg8+ {[%clk 0:00:07]}  Kf2 {[%clk 0:00:08]} 70. Rh8 {[%clk 0:00:07]}  Kg3 {[%clk 0:00:08]} 71. Rg8+ {[%clk 0:00:08]}  Kf3 {[%clk 0:00:08]} 72. Rh8 {[%clk 0:00:08]}  Kg4 {[%clk 0:00:08]} 73. Rg8+ {[%clk 0:00:08]}  Kf3 {[%clk 0:00:08]} 1/2-1/2


[Site "https://www.chess.com"]

[Event "Titled Tuesday Blitz May 10 Early 2022"]
[White "Ivanisevic, Ivan"]
[Black "Yurtseven, Melih"]
[WhiteFideId "912417"]
[BlackFideId "6312160"]
[WhiteElo "2495"]
[BlackElo "2160"]
[Result "1-0"]
[Round "09"]
[TimeControl "180+1"]
[Date "2022.05.11"]
[WhiteClock "0:00:15"]
[BlackClock "0:00:02"]

1. e4 {[%clk 0:02:46]}  e5 {[%clk 0:02:59]} 2. Nf3 {[%clk 0:02:45]}  Nc6 {[%clk 0:03:00]} 3. Bc4 {[%clk 0:02:45]}  Nf6 {[%clk 0:03:00]} 4. d3 {[%clk 0:02:45]}  h6 {[%clk 0:02:58]} 5. O-O {[%clk 0:02:40]}  d6 {[%clk 0:02:56]} 6. c3 {[%clk 0:02:37]}  g5 {[%clk 0:02:53]} 7. Bb3 {[%clk 0:02:31]}  Bg7 {[%clk 0:02:48]} 8. Nbd2 {[%clk 0:02:31]}  Bg4 {[%clk 0:02:45]} 9. Nc4 {[%clk 0:02:29]}  d5 {[%clk 0:02:33]} 10. Ne3 {[%clk 0:02:24]}  Be6 {[%clk 0:02:26]} 11. Re1 {[%clk 0:01:52]}  dxe4 {[%clk 0:02:08]} 12. Bxe6 {[%clk 0:01:50]}  exf3 {[%clk 0:02:07]} 13. Bb3 {[%clk 0:01:45]}  fxg2 {[%clk 0:02:06]} 14. Nf5 {[%clk 0:01:45]}  O-O {[%clk 0:02:06]} 15. Qf3 {[%clk 0:01:42]}  Qd7 {[%clk 0:01:59]} 16. Nxh6+ {[%clk 0:01:35]}  Bxh6 {[%clk 0:01:58]} 17. Qxf6 {[%clk 0:01:35]}  Kh7 {[%clk 0:01:09]} 18. Bxg5 {[%clk 0:01:32]}  Bxg5 {[%clk 0:01:01]} 19. Qxg5 {[%clk 0:01:33]}  Rg8 {[%clk 0:01:01]} 20. Qh4+ {[%clk 0:01:28]}  Kg7 {[%clk 0:01:01]} 21. Re3 {[%clk 0:01:26]}  Kf8 {[%clk 0:01:01]} 22. Rae1 {[%clk 0:01:21]}  Qg4 {[%clk 0:00:48]} 23. Qf6 {[%clk 0:01:17]}  Qg7 {[%clk 0:00:45]} 24. Qf5 {[%clk 0:01:05]}  Qg6 {[%clk 0:00:43]} 25. Rf3 {[%clk 0:01:04]}  Qxf5 {[%clk 0:00:41]} 26. Rxf5 {[%clk 0:01:05]}  Rg7 {[%clk 0:00:42]} 27. Re3 {[%clk 0:01:05]}  Ke7 {[%clk 0:00:21]} 28. Rg3 {[%clk 0:01:04]}  Rag8 {[%clk 0:00:17]} 29. Rxf7+ {[%clk 0:00:59]}  Rxf7 {[%clk 0:00:17]} 30. Rxg8 {[%clk 0:01:00]}  Rf3 {[%clk 0:00:18]} 31. Rg3 {[%clk 0:00:58]}  Rf4 {[%clk 0:00:16]} 32. Kxg2 {[%clk 0:00:58]}  a5 {[%clk 0:00:15]} 33. h3 {[%clk 0:00:52]}  a4 {[%clk 0:00:14]} 34. Bd5 {[%clk 0:00:52]}  a3 {[%clk 0:00:13]} 35. b4 {[%clk 0:00:50]}  Kd6 {[%clk 0:00:10]} 36. Be4 {[%clk 0:00:49]}  Rh4 {[%clk 0:00:09]} 37. Rg4 {[%clk 0:00:49]}  Rh8 {[%clk 0:00:09]} 38. h4 {[%clk 0:00:48]}  Nd8 {[%clk 0:00:09]} 39. Rg6+ {[%clk 0:00:46]}  Kd7 {[%clk 0:00:09]} 40. Bf5+ {[%clk 0:00:46]}  Ke7 {[%clk 0:00:09]} 41. Kg3 {[%clk 0:00:46]}  Rf8 {[%clk 0:00:07]} 42. Bg4 {[%clk 0:00:45]}  Nf7 {[%clk 0:00:07]} 43. h5 {[%clk 0:00:44]}  Rh8 {[%clk 0:00:07]} 44. Kh4 {[%clk 0:00:42]}  c6 {[%clk 0:00:06]} 45. Re6+ {[%clk 0:00:39]}  Kf8 {[%clk 0:00:06]} 46. Rf6 {[%clk 0:00:39]}  Ke7 {[%clk 0:00:06]} 47. Rg6 {[%clk 0:00:36]}  Rd8 {[%clk 0:00:06]} 48. Bf5 {[%clk 0:00:36]}  Rh8 {[%clk 0:00:05]} 49. Be6 {[%clk 0:00:35]}  Nd6 {[%clk 0:00:05]} 50. h6 {[%clk 0:00:33]}  e4 {[%clk 0:00:05]} 51. d4 {[%clk 0:00:22]}  Nb5 {[%clk 0:00:05]} 52. Bb3 {[%clk 0:00:19]}  Nxc3 {[%clk 0:00:05]} 53. Kg5 {[%clk 0:00:19]}  e3 {[%clk 0:00:03]} 54. fxe3 {[%clk 0:00:18]}  Ne4+ {[%clk 0:00:04]} 55. Kf4 {[%clk 0:00:18]}  Nd2 {[%clk 0:00:03]} 56. Bc2 {[%clk 0:00:17]}  Rf8+ {[%clk 0:00:03]} 57. Kg4 {[%clk 0:00:17]}  Rf2 {[%clk 0:00:02]} 58. h7 {[%clk 0:00:16]}  Rh2 {[%clk 0:00:03]} 59. Rg7+ {[%clk 0:00:16]}  Kf6 {[%clk 0:00:03]} 60. Rg8 {[%clk 0:00:16]}  Rg2+ {[%clk 0:00:02]} 61. Kh3 {[%clk 0:00:15]} 1-0


[Site "https://www.chess.com"]